[Event "12h Blitz Kuppenheim Endrunde"]
[Site "Kuppenheim"]
[Date "2005.06.04"]
[Round "?"]
[White "KingLoek"]
[Black "Polaczek"]
[Result "1-0"]
[ECO "D15"]
[WhiteElo "2685"]
[BlackElo "2430"]
[PlyCount "83"]
[EventDate "2005.06.03"]
[EventType "blitz"]
[Source "Kuppenheim"]
[SourceDate "2005.01.01"]
[TimeControl "240"]

1. d4 {[%emt 0:00:00]} d5 {[%emt 0:00:03]} 2. c4 {[%emt 0:00:01]} c6 {
[%emt 0:00:02]} 3. Nc3 {[%emt 0:00:01]} Nf6 {[%emt 0:00:16]} 4. Nf3 {
[%emt 0:00:01]} a6 {[%emt 0:00:02]} 5. a4 {[%emt 0:00:02]} e6 {[%emt 0:00:02]}
6. Bg5 {[%emt 0:00:01]} Nbd7 {[%emt 0:00:03]} 7. cxd5 {[%emt 0:00:05]} exd5 {
[%emt 0:00:04]} 8. e3 {[%emt 0:00:02]} Bd6 {[%emt 0:00:05]} 9. Bd3 {
[%emt 0:00:02]} O-O {[%emt 0:00:02]} 10. Qc2 {[%emt 0:00:01]} h6 {
[%emt 0:00:01]} 11. Bh4 {[%emt 0:00:01]} Re8 {[%emt 0:00:07]} 12. O-O {
[%emt 0:00:02]} Qc7 {[%emt 0:00:05]} 13. a5 {[%emt 0:00:09]} c5 {[%emt 0:00:10]
} 14. Bf5 {[%emt 0:00:06]} c4 {[%emt 0:00:07]} 15. Bxd7 {[%emt 0:00:06]} Qxd7 {
[%emt 0:00:03]} 16. Bxf6 {[%emt 0:00:02]} gxf6 {[%emt 0:00:01]} 17. Nxd5 {
[%emt 0:00:23]} Bxh2+ {[%emt 0:00:03]} 18. Nxh2 {[%emt 0:00:13]} Qxd5 {
[%emt 0:00:03]} 19. Rfc1 {[%emt 0:00:00]} Be6 {[%emt 0:00:04]} 20. Qe2 {
[%emt 0:00:12]} Rac8 {[%emt 0:00:10]} 21. Qf3 {[%emt 0:00:03]} Qxf3 {
[%emt 0:00:11]} 22. Nxf3 {[%emt 0:00:01]} Bd5 {[%emt 0:00:09]} 23. Nd2 {
[%emt 0:00:02]} f5 {[%emt 0:00:03]} 24. Ra3 {[%emt 0:00:04]} Re6 {
[%emt 0:00:05]} 25. f3 {[%emt 0:00:02]} b5 {[%emt 0:00:12]} 26. axb6 {
[%emt 0:00:04]} Rxb6 {[%emt 0:00:03]} 27. Rc2 {[%emt 0:00:07]} Rcb8 {
[%emt 0:00:12]} 28. Nxc4 {[%emt 0:00:07]} Bxc4 {[%emt 0:00:02]} 29. Rxc4 {
[%emt 0:00:02]} Rxb2 {[%emt 0:00:00]} 30. Rc1 {[%emt 0:00:37]} Re2 {
[%emt 0:00:05]} 31. Kh2 {[%emt 0:00:03]} Rb6 {[%emt 0:00:04]} 32. Kg3 {
[%emt 0:00:06]} Rg6+ {[%emt 0:00:02]} 33. Kf4 {[%emt 0:00:01]} Rexg2 {
[%emt 0:00:01]} 34. Rc5 {[%emt 0:00:05]} Rh2 {[%emt 0:00:10]} 35. Rxf5 {
[%emt 0:00:12]} h5 {[%emt 0:00:03]} 36. Rg5 {[%emt 0:00:09]} Rh4+ {
[%emt 0:00:13]} 37. Kf5 {[%emt 0:00:01]} Rh3 {[%emt 0:00:03]} 38. Rxg6+ {
[%emt 0:00:04]} fxg6+ {[%emt 0:00:01]} 39. Kxg6 {[%emt 0:00:01]} Rxf3 {
[%emt 0:00:03]} 40. Kxh5 {[%emt 0:00:02]} Kf7 {[%emt 0:00:06]} 41. Kg4 {
[%emt 0:00:02]} Rf2 {[%emt 0:00:02]} 42. Rxa6 {
Kuppenheim gibt auf  (Lag: Av=0.53s, max=1.6s) [%emt 0:00:02]} 1-0

[Event "12h Blitz Kuppenheim Endrunde"]
[Site "Kuppenheim"]
[Date "2005.06.04"]
[Round "?"]
[White "Schneider"]
[Black "KingLoek"]
[Result "0-1"]
[ECO "A00"]
[WhiteElo "2350"]
[BlackElo "2685"]
[PlyCount "24"]
[EventDate "2005.06.03"]
[EventType "blitz"]
[Source "Kuppenheim"]
[SourceDate "2005.01.01"]
[TimeControl "240"]

1. f3 {[%emt 0:00:06]} d5 {[%emt 0:00:02]} 2. Kf2 {[%emt 0:00:02]} e5 {
[%emt 0:00:02]} 3. Kg3 {[%emt 0:00:01]} Nc6 {[%emt 0:00:09]} 4. f4 {
[%emt 0:00:14]} exf4+ {[%emt 0:00:09]} 5. Kxf4 {[%emt 0:00:01]} Bd6+ {
[%emt 0:00:02]} 6. Kf3 {[%emt 0:00:08]} Qf6+ {[%emt 0:00:08]} 7. Ke3 {
[%emt 0:00:04]} Qf4+ {[%emt 0:00:04]} 8. Kd3 {[%emt 0:00:04]} Qe4+ {
[%emt 0:00:04]} 9. Kc3 {[%emt 0:00:02]} Qb4+ {[%emt 0:00:03]} 10. Kd3 {
[%emt 0:00:03]} Qe4+ {[%emt 0:00:01]} 11. Kc3 {[%emt 0:00:02]} Qd4+ {
[%emt 0:00:02]} 12. Kb3 {[%emt 0:00:04]} Qc4# {
(Lag: Av=0.52s, max=0.7s) [%emt 0:00:01]} 0-1

[Event "12h Blitz Kuppenheim Endrunde"]
[Site "Kuppenheim"]
[Date "2005.06.04"]
[Round "?"]
[White "KingLoek"]
[Black "Holzinger"]
[Result "1-0"]
[ECO "A40"]
[WhiteElo "2685"]
[BlackElo "1900"]
[PlyCount "41"]
[EventDate "2005.06.03"]
[EventType "blitz"]
[Source "Kuppenheim"]
[SourceDate "2005.01.01"]
[TimeControl "240"]

1. d4 {[%emt 0:00:01]} e5 {[%emt 0:00:03]} 2. dxe5 {[%emt 0:00:02]} Nc6 {
[%emt 0:00:00]} 3. Nf3 {[%emt 0:00:01]} d6 {[%emt 0:00:01]} 4. exd6 {
[%emt 0:00:02]} Bxd6 {[%emt 0:00:00]} 5. g3 {[%emt 0:00:03]} Qe7 {
[%emt 0:00:02]} 6. Bg2 {[%emt 0:00:02]} Bg4 {[%emt 0:00:02]} 7. O-O {
[%emt 0:00:02]} O-O-O {[%emt 0:00:01]} 8. Nbd2 {[%emt 0:00:02]} h5 {
[%emt 0:00:01]} 9. h4 {[%emt 0:00:04]} f6 {[%emt 0:00:01]} 10. Re1 {
[%emt 0:00:24]} g5 {[%emt 0:00:02]} 11. c3 {[%emt 0:00:04]} gxh4 {
[%emt 0:00:02]} 12. Nxh4 {[%emt 0:00:01]} Ne5 {[%emt 0:00:18]} 13. Qc2 {
[%emt 0:00:07]} Nh6 {[%emt 0:00:19]} 14. Ne4 {[%emt 0:00:10]} Bc5 {
[%emt 0:00:02]} 15. Nxc5 {[%emt 0:00:06]} Qxc5 {[%emt 0:00:02]} 16. Be3 {
[%emt 0:00:01]} Qd6 {[%emt 0:00:20]} 17. Rad1 {[%emt 0:00:03]} Qe6 {
[%emt 0:00:01]} 18. Rxd8+ {[%emt 0:00:03]} Rxd8 {[%emt 0:00:00]} 19. Bxh6 {
[%emt 0:00:03]} Bh3 {[%emt 0:00:17]} 20. Bxh3 {[%emt 0:00:04]} Qxh3 {
[%emt 0:00:04]} 21. Qf5+ {
Kuppenheim gibt auf  (Lag: Av=0.51s, max=0.6s) [%emt 0:00:03]} 1-0

[Event "12h Blitz Kuppenheim Endrunde"]
[Site "Kuppenheim"]
[Date "2005.06.04"]
[Round "?"]
[White "N.N."]
[Black "KingLoek"]
[Result "0-1"]
[ECO "B95"]
[WhiteElo "2300"]
[BlackElo "2685"]
[PlyCount "80"]
[EventDate "2005.06.03"]
[EventType "blitz"]
[Source "Kuppenheim"]
[SourceDate "2005.01.01"]
[TimeControl "240"]

1. e4 {[%emt 0:00:02]} c5 {[%emt 0:00:02]} 2. Nf3 {[%emt 0:00:03]} d6 {
[%emt 0:00:02]} 3. d4 {[%emt 0:00:03]} cxd4 {[%emt 0:00:01]} 4. Nxd4 {
[%emt 0:00:03]} Nf6 {[%emt 0:00:01]} 5. Nc3 {[%emt 0:00:02]} a6 {[%emt 0:00:01]
} 6. Bg5 {[%emt 0:00:02]} e6 {[%emt 0:00:02]} 7. Qd2 {[%emt 0:00:02]} b5 {
[%emt 0:00:02]} 8. f3 {[%emt 0:00:07]} Bb7 {[%emt 0:00:02]} 9. O-O-O {
[%emt 0:00:02]} Nbd7 {[%emt 0:00:02]} 10. Bd3 {[%emt 0:00:04]} Be7 {
[%emt 0:00:01]} 11. h4 {[%emt 0:00:04]} Rc8 {[%emt 0:00:02]} 12. Kb1 {
[%emt 0:00:04]} O-O {[%emt 0:00:02]} 13. g4 {[%emt 0:00:02]} Ne5 {
[%emt 0:00:05]} 14. Be3 {[%emt 0:00:05]} Nc4 {[%emt 0:00:05]} 15. Bxc4 {
[%emt 0:00:02]} Rxc4 {[%emt 0:00:01]} 16. g5 {[%emt 0:00:04]} Nd7 {
[%emt 0:00:02]} 17. h5 {[%emt 0:00:02]} Ne5 {[%emt 0:00:22]} 18. g6 {
[%emt 0:00:05]} Qc8 {[%emt 0:00:05]} 19. gxh7+ {[%emt 0:00:06]} Kxh7 {
[%emt 0:00:05]} 20. Rdg1 {[%emt 0:00:07]} Rxc3 {[%emt 0:00:20]} 21. Qxc3 {
[%emt 0:00:06]} Qxc3 {[%emt 0:00:03]} 22. bxc3 {[%emt 0:00:01]} Rc8 {
[%emt 0:00:03]} 23. Bd2 {[%emt 0:00:05]} Nc4 {[%emt 0:00:01]} 24. Bc1 {
[%emt 0:00:05]} Nb6 {[%emt 0:00:01]} 25. Bb2 {
Kuppenheim bietet Remis [%emt 0:00:07]} Na4 {[%emt 0:00:02]} 26. Rh2 {
[%emt 0:00:08]} Nxc3+ {[%emt 0:00:06]} 27. Bxc3 {[%emt 0:00:01]} Rxc3 {
[%emt 0:00:03]} 28. Rf2 {[%emt 0:00:10]} Bf6 {[%emt 0:00:09]} 29. Nb3 {
[%emt 0:00:04]} d5 {[%emt 0:00:03]} 30. exd5 {[%emt 0:00:06]} Bxd5 {
[%emt 0:00:02]} 31. f4 {[%emt 0:00:03]} a5 {[%emt 0:00:08]} 32. Rd1 {
[%emt 0:00:04]} a4 {[%emt 0:00:03]} 33. Nc1 {[%emt 0:00:03]} b4 {[%emt 0:00:03]
} 34. Rd3 {[%emt 0:00:02]} Rc4 {[%emt 0:00:03]} 35. f5 {[%emt 0:00:04]} Rh4 {
[%emt 0:00:07]} 36. fxe6 {[%emt 0:00:02]} fxe6 {[%emt 0:00:01]} 37. Rdf3 {
[%emt 0:00:09]} Bxf3 {[%emt 0:00:05]} 38. Rxf3 {[%emt 0:00:01]} Rxh5 {
[%emt 0:00:05]} 39. a3 {[%emt 0:00:07]} Rh1 {[%emt 0:00:03]} 40. axb4 {
[%emt 0:00:16]} Bg5 {
Kuppenheim gibt auf  (Lag: Av=0.48s, max=0.6s) [%emt 0:00:03]} 0-1

[Event "12h Blitz Kuppenheim Endrunde"]
[Site "Kuppenheim"]
[Date "2005.06.04"]
[Round "?"]
[White "KingLoek"]
[Black "Miezis"]
[Result "1/2-1/2"]
[ECO "A60"]
[WhiteElo "2685"]
[BlackElo "2564"]
[PlyCount "95"]
[EventDate "2005.06.03"]
[EventType "blitz"]
[Source "Kuppenheim"]
[SourceDate "2005.01.01"]
[TimeControl "240"]

1. d4 {[%emt 0:00:02]} Nf6 {[%emt 0:00:07]} 2. Nf3 {[%emt 0:00:01]} c5 {
[%emt 0:00:07]} 3. d5 {[%emt 0:00:02]} e6 {[%emt 0:00:03]} 4. c4 {
[%emt 0:00:02]} exd5 {[%emt 0:00:02]} 5. cxd5 {[%emt 0:00:01]} Bd6 {
[%emt 0:00:02]} 6. Nc3 {[%emt 0:00:03]} Bc7 {[%emt 0:00:02]} 7. g3 {
[%emt 0:00:03]} d6 {[%emt 0:00:03]} 8. Bg2 {[%emt 0:00:01]} O-O {[%emt 0:00:02]
} 9. O-O {[%emt 0:00:02]} a6 {[%emt 0:00:03]} 10. a4 {[%emt 0:00:02]} Re8 {
[%emt 0:00:02]} 11. Nd2 {[%emt 0:00:07]} Nbd7 {[%emt 0:00:05]} 12. h3 {
[%emt 0:00:02]} Rb8 {[%emt 0:00:04]} 13. g4 {[%emt 0:00:14]} Ne5 {
[%emt 0:00:08]} 14. f4 {[%emt 0:00:08]} Nexg4 {[%emt 0:00:05]} 15. hxg4 {
[%emt 0:00:02]} Nxg4 {[%emt 0:00:02]} 16. Nf3 {[%emt 0:00:09]} c4 {
[%emt 0:00:06]} 17. a5 {[%emt 0:00:22]} Bxa5 {[%emt 0:00:06]} 18. Rxa5 {
[%emt 0:00:01]} Qxa5 {[%emt 0:00:04]} 19. Qd4 {[%emt 0:00:01]} b5 {
[%emt 0:00:09]} 20. e4 {[%emt 0:00:02]} b4 {[%emt 0:00:04]} 21. Nd1 {
[%emt 0:00:04]} Bd7 {[%emt 0:00:05]} 22. Nf2 {[%emt 0:00:06]} Nxf2 {
[%emt 0:00:05]} 23. Rxf2 {[%emt 0:00:02]} c3 {[%emt 0:00:02]} 24. bxc3 {
[%emt 0:00:03]} bxc3 {[%emt 0:00:02]} 25. Be3 {[%emt 0:00:08]} Rec8 {
[%emt 0:00:12]} 26. Ne1 {[%emt 0:00:15]} Qb4 {[%emt 0:00:06]} 27. Qxb4 {
[%emt 0:00:20]} Rxb4 {[%emt 0:00:02]} 28. Kh2 {[%emt 0:00:02]} Ba4 {
[%emt 0:00:06]} 29. Nd3 {[%emt 0:00:04]} Rb1 {[%emt 0:00:06]} 30. e5 {
[%emt 0:00:02]} Bb5 {[%emt 0:00:06]} 31. Nc1 {[%emt 0:00:02]} dxe5 {
[%emt 0:00:02]} 32. fxe5 {[%emt 0:00:02]} Re8 {[%emt 0:00:02]} 33. e6 {
[%emt 0:00:07]} fxe6 {[%emt 0:00:02]} 34. dxe6 {[%emt 0:00:01]} Bc4 {
[%emt 0:00:02]} 35. Rc2 {[%emt 0:00:05]} Rxe6 {[%emt 0:00:08]} 36. Rxc3 {
[%emt 0:00:02]} Rxe3 {[%emt 0:00:03]} 37. Rxc4 {[%emt 0:00:01]} h5 {
[%emt 0:00:08]} 38. Rc8+ {[%emt 0:00:12]} Kh7 {[%emt 0:00:04]} 39. Nd3 {
[%emt 0:00:01]} g6 {[%emt 0:00:06]} 40. Nf4 {[%emt 0:00:04]} Rb4 {
[%emt 0:00:05]} 41. Nd5 {[%emt 0:00:03]} Rh4+ {[%emt 0:00:03]} 42. Kg1 {
[%emt 0:00:01]} Re1+ {[%emt 0:00:04]} 43. Kf2 {[%emt 0:00:01]} Re5 {
[%emt 0:00:03]} 44. Bf3 {[%emt 0:00:04]} Ra4 {[%emt 0:00:06]} 45. Rc6 {
[%emt 0:00:03]} Ra2+ {[%emt 0:00:05]} 46. Kf1 {[%emt 0:00:07]} Rf5 {
[%emt 0:00:03]} 47. Rc3 {[%emt 0:00:01]} h4 {[%emt 0:00:05]} 48. Kg1 {
Kuppenheim bietet Remis  (Lag: Av=0.52s, max=1.0s) [%emt 0:00:03]} 1/2-1/2

[Event "12h Blitz Kuppenheim Play-off"]
[Site "Kuppenheim"]
[Date "2005.06.04"]
[Round "?"]
[White "KingLoek"]
[Black "Miezis"]
[Result "1-0"]
[ECO "A52"]
[WhiteElo "2685"]
[BlackElo "2564"]
[PlyCount "57"]
[EventDate "2005.06.03"]
[EventType "blitz"]
[Source "Kuppenheim"]
[SourceDate "2005.01.01"]
[TimeControl "240"]

1. d4 {[%emt 0:00:01]} Nf6 {[%emt 0:00:03]} 2. c4 {[%emt 0:00:01]} e5 {
[%emt 0:00:05]} 3. dxe5 {[%emt 0:00:01]} Ng4 {[%emt 0:00:03]} 4. Bf4 {
[%emt 0:00:02]} Bc5 {[%emt 0:00:05]} 5. e3 {[%emt 0:00:02]} d6 {[%emt 0:00:12]}
6. exd6 {[%emt 0:00:04]} cxd6 {[%emt 0:00:04]} 7. Nc3 {[%emt 0:00:07]} O-O {
[%emt 0:00:05]} 8. Be2 {[%emt 0:00:06]} Nf6 {[%emt 0:00:10]} 9. Nf3 {
[%emt 0:00:04]} Re8 {[%emt 0:00:03]} 10. O-O {[%emt 0:00:02]} Nc6 {
[%emt 0:00:02]} 11. a3 {[%emt 0:00:11]} a5 {[%emt 0:00:03]} 12. Na4 {
[%emt 0:00:09]} Bf5 {[%emt 0:00:08]} 13. Nxc5 {[%emt 0:00:17]} dxc5 {
[%emt 0:00:02]} 14. Qxd8 {[%emt 0:00:05]} Raxd8 {[%emt 0:00:03]} 15. Rfd1 {
[%emt 0:00:02]} Bc2 {[%emt 0:00:10]} 16. Rxd8 {[%emt 0:00:05]} Rxd8 {
[%emt 0:00:02]} 17. Rc1 {[%emt 0:00:01]} Bb3 {[%emt 0:00:06]} 18. Bg5 {
[%emt 0:00:16]} a4 {[%emt 0:00:09]} 19. Kf1 {[%emt 0:00:04]} Rd6 {
[%emt 0:00:03]} 20. Bxf6 {[%emt 0:00:04]} Rxf6 {[%emt 0:00:04]} 21. Nd2 {
[%emt 0:00:07]} Na5 {[%emt 0:00:04]} 22. Ke1 {[%emt 0:00:04]} Rb6 {
[%emt 0:00:03]} 23. Nxb3 {[%emt 0:00:13]} Nxb3 {[%emt 0:00:07]} 24. Rd1 {
[%emt 0:00:06]} Kf8 {[%emt 0:00:02]} 25. Rd5 {[%emt 0:00:04]} Na1 {
[%emt 0:00:08]} 26. Bd1 {[%emt 0:00:17]} Rxb2 {[%emt 0:00:05]} 27. Bxa4 {
[%emt 0:00:01]} b6 {[%emt 0:00:11]} 28. Rd2 {[%emt 0:00:09]} Rb1+ {
[%emt 0:00:16]} 29. Rd1 {
Kuppenheim gibt auf  (Lag: Av=0.54s, max=1.0s) [%emt 0:00:01]} 1-0

[Event "12h Blitz Kuppenheim Play-off"]
[Site "Kuppenheim"]
[Date "2005.06.04"]
[Round "?"]
[White "Miezis"]
[Black "KingLoek"]
[Result "1/2-1/2"]
[ECO "A22"]
[WhiteElo "2564"]
[BlackElo "2685"]
[PlyCount "79"]
[EventDate "2005.06.03"]
[EventType "blitz"]
[Source "Kuppenheim"]
[SourceDate "2005.01.01"]
[TimeControl "240"]

1. c4 {[%emt 0:00:07]} Nf6 {[%emt 0:00:02]} 2. Nc3 {[%emt 0:00:02]} e5 {
[%emt 0:00:01]} 3. g3 {[%emt 0:00:01]} Bb4 {[%emt 0:00:02]} 4. Bg2 {
[%emt 0:00:01]} O-O {[%emt 0:00:01]} 5. e4 {[%emt 0:00:02]} Bxc3 {
[%emt 0:00:02]} 6. dxc3 {[%emt 0:00:01]} d6 {[%emt 0:00:05]} 7. Qe2 {
[%emt 0:00:02]} a6 {[%emt 0:00:06]} 8. Nf3 {[%emt 0:00:03]} Nbd7 {
[%emt 0:00:06]} 9. Nd2 {[%emt 0:00:04]} b5 {[%emt 0:00:08]} 10. O-O {
[%emt 0:00:04]} Qe7 {[%emt 0:00:17]} 11. b3 {[%emt 0:00:07]} Nb6 {
[%emt 0:00:11]} 12. Ba3 {[%emt 0:00:06]} Be6 {[%emt 0:00:06]} 13. f4 {
[%emt 0:00:18]} c5 {[%emt 0:00:10]} 14. f5 {[%emt 0:00:09]} Bd7 {[%emt 0:00:03]
} 15. g4 {[%emt 0:00:04]} h6 {[%emt 0:00:06]} 16. Bc1 {[%emt 0:00:04]} bxc4 {
[%emt 0:00:03]} 17. Nxc4 {[%emt 0:00:03]} Nxc4 {[%emt 0:00:02]} 18. bxc4 {
[%emt 0:00:02]} Bc6 {[%emt 0:00:03]} 19. g5 {[%emt 0:00:05]} hxg5 {
[%emt 0:00:03]} 20. Bxg5 {[%emt 0:00:03]} Rfb8 {[%emt 0:00:03]} 21. Rf3 {
[%emt 0:00:09]} Qb7 {[%emt 0:00:08]} 22. Rg3 {[%emt 0:00:12]} Kf8 {
[%emt 0:00:03]} 23. Re1 {[%emt 0:00:06]} Qb2 {[%emt 0:00:08]} 24. Qd3 {
[%emt 0:00:03]} Ne8 {[%emt 0:00:07]} 25. Rh3 {[%emt 0:00:04]} f6 {
[%emt 0:00:03]} 26. Bc1 {[%emt 0:00:08]} Qxa2 {[%emt 0:00:06]} 27. Rh8+ {
[%emt 0:00:04]} Ke7 {[%emt 0:00:04]} 28. Rd1 {[%emt 0:00:04]} Rb6 {
[%emt 0:00:28]} 29. Bf3 {[%emt 0:00:05]} Qb1 {[%emt 0:00:09]} 30. Qe2 {
[%emt 0:00:13]} Rab8 {[%emt 0:00:05]} 31. Qg2 {[%emt 0:00:03]} Ba4 {
[%emt 0:00:16]} 32. Rxe8+ {[%emt 0:00:09]} Kxe8 {[%emt 0:00:06]} 33. Qxg7 {
[%emt 0:00:06]} Bxd1 {[%emt 0:00:05]} 34. Qg8+ {[%emt 0:00:12]} Kd7 {
[%emt 0:00:03]} 35. Qe6+ {[%emt 0:00:09]} Kc7 {[%emt 0:00:07]} 36. Qf7+ {
[%emt 0:00:08]} Kc8 {[%emt 0:00:01]} 37. Qg8+ {[%emt 0:00:11]} Kc7 {
[%emt 0:00:01]} 38. Qf7+ {[%emt 0:00:02]} Kc8 {[%emt 0:00:01]} 39. Qg8+ {
[%emt 0:00:01]} Kc7 {[%emt 0:00:01]} 40. Qf7+ {
(Lag: Av=0.56s, max=1.5s) [%emt 0:00:02]} 1/2-1/2

[Event "12h Blitz Kuppenheim Play-off"]
[Site "Kuppenheim"]
[Date "2005.06.04"]
[Round "?"]
[White "KingLoek"]
[Black "Bauer"]
[Result "1-0"]
[ECO "B00"]
[WhiteElo "2685"]
[BlackElo "2640"]
[PlyCount "125"]
[EventDate "2005.06.03"]
[EventType "blitz"]
[Source "Kuppenheim"]
[SourceDate "2005.01.01"]
[TimeControl "240"]

1. d4 {[%emt 0:00:00]} b6 {[%emt 0:00:00]} 2. e4 {[%emt 0:00:03]} Bb7 {
[%emt 0:00:00]} 3. Bd3 {[%emt 0:00:01]} e6 {[%emt 0:00:00]} 4. Nf3 {
[%emt 0:00:02]} c5 {[%emt 0:00:01]} 5. c3 {[%emt 0:00:02]} Nf6 {[%emt 0:00:00]}
6. Qe2 {[%emt 0:00:01]} d5 {[%emt 0:00:01]} 7. e5 {[%emt 0:00:02]} Nfd7 {
[%emt 0:00:00]} 8. O-O {[%emt 0:00:03]} Nc6 {[%emt 0:00:02]} 9. a3 {
[%emt 0:00:02]} c4 {[%emt 0:00:03]} 10. Bc2 {[%emt 0:00:01]} Be7 {
[%emt 0:00:00]} 11. Re1 {[%emt 0:00:03]} b5 {[%emt 0:00:01]} 12. Nbd2 {
[%emt 0:00:02]} a5 {[%emt 0:00:01]} 13. Nf1 {[%emt 0:00:01]} b4 {[%emt 0:00:02]
} 14. Ng3 {[%emt 0:00:13]} h5 {[%emt 0:00:01]} 15. axb4 {[%emt 0:00:06]} axb4 {
[%emt 0:00:01]} 16. Rxa8 {[%emt 0:00:01]} Bxa8 {[%emt 0:00:00]} 17. h3 {
[%emt 0:00:08]} Nb6 {[%emt 0:00:03]} 18. Bd2 {[%emt 0:00:02]} b3 {
[%emt 0:00:05]} 19. Bb1 {[%emt 0:00:02]} Na4 {[%emt 0:00:00]} 20. Bc1 {
[%emt 0:00:02]} Na7 {[%emt 0:00:03]} 21. Qe3 {[%emt 0:00:07]} Nb5 {
[%emt 0:00:04]} 22. Qf4 {[%emt 0:00:03]} Nbxc3 {[%emt 0:00:11]} 23. bxc3 {
[%emt 0:00:02]} Nxc3 {[%emt 0:00:00]} 24. Bd2 {[%emt 0:00:07]} Nb5 {
[%emt 0:00:03]} 25. Qe3 {[%emt 0:00:08]} Qb6 {[%emt 0:00:13]} 26. Ne2 {
[%emt 0:00:04]} Bc6 {[%emt 0:00:07]} 27. Nc3 {[%emt 0:00:07]} Na3 {
[%emt 0:00:02]} 28. Qf4 {[%emt 0:00:07]} Rf8 {[%emt 0:00:10]} 29. Rd1 {
[%emt 0:00:15]} Bb4 {[%emt 0:00:05]} 30. Qg5 {[%emt 0:00:05]} Qa5 {
[%emt 0:00:11]} 31. Ne2 {[%emt 0:00:01]} c3 {[%emt 0:00:30]} 32. Bxc3 {
[%emt 0:00:08]} Bxc3 {[%emt 0:00:00]} 33. Nxc3 {[%emt 0:00:03]} Qxc3 {
[%emt 0:00:02]} 34. Rc1 {[%emt 0:00:01]} Qb2 {[%emt 0:00:33]} 35. Rxc6 {
[%emt 0:00:04]} Qxb1+ {[%emt 0:00:02]} 36. Rc1 {[%emt 0:00:06]} b2 {
[%emt 0:00:47]} 37. Rxb1 {[%emt 0:00:07]} Nxb1 {[%emt 0:00:00]} 38. Qe3 {
[%emt 0:00:03]} Na3 {[%emt 0:00:03]} 39. Nd2 {[%emt 0:00:02]} Nc4 {
[%emt 0:00:05]} 40. Qc3 {[%emt 0:00:11]} Nxd2 {[%emt 0:00:00]} 41. Qxb2 {
[%emt 0:00:03]} Nc4 {[%emt 0:00:00]} 42. Qb8+ {[%emt 0:00:04]} Ke7 {
[%emt 0:00:00]} 43. Qc7+ {[%emt 0:00:01]} Ke8 {[%emt 0:00:01]} 44. Kh2 {
[%emt 0:00:04]} g6 {[%emt 0:00:01]} 45. Kg3 {[%emt 0:00:02]} f5 {[%emt 0:00:04]
} 46. Kf4 {[%emt 0:00:05]} Rf7 {[%emt 0:00:04]} 47. Qc8+ {[%emt 0:00:01]} Ke7 {
[%emt 0:00:01]} 48. Kg5 {[%emt 0:00:01]} Nd2 {[%emt 0:00:02]} 49. f3 {
[%emt 0:00:01]} f4 {[%emt 0:00:02]} 50. Kxg6 {[%emt 0:00:02]} Rf5 {
[%emt 0:00:01]} 51. h4 {[%emt 0:00:05]} Nf1 {[%emt 0:00:01]} 52. Qc7+ {
[%emt 0:00:02]} Ke8 {[%emt 0:00:00]} 53. Qc6+ {[%emt 0:00:02]} Ke7 {
[%emt 0:00:00]} 54. Qb7+ {[%emt 0:00:01]} Ke8 {[%emt 0:00:01]} 55. Qa8+ {
[%emt 0:00:01]} Ke7 {[%emt 0:00:00]} 56. Qa3+ {[%emt 0:00:01]} Ke8 {
[%emt 0:00:01]} 57. Qd3 {[%emt 0:00:01]} Ne3 {[%emt 0:00:02]} 58. Qb5+ {
[%emt 0:00:01]} Ke7 {[%emt 0:00:01]} 59. Qb7+ {[%emt 0:00:01]} Ke8 {
[%emt 0:00:00]} 60. Kg7 {[%emt 0:00:01]} Nxg2 {[%emt 0:00:01]} 61. Qb8+ {
[%emt 0:00:02]} Ke7 {[%emt 0:00:00]} 62. Qd6+ {[%emt 0:00:01]} Ke8 {
[%emt 0:00:00]} 63. Qxe6+ {Zeit  (Lag: Av=0.54s, max=1.2s) [%emt 0:00:01]} 1-0

[Event "12h Blitz Kuppenheim Play-off"]
[Site "Kuppenheim"]
[Date "2005.06.04"]
[Round "?"]
[White "Bauer"]
[Black "KingLoek"]
[Result "1/2-1/2"]
[ECO "A00"]
[WhiteElo "2640"]
[BlackElo "2685"]
[PlyCount "114"]
[EventDate "2005.06.03"]
[EventType "blitz"]
[Source "Kuppenheim"]
[SourceDate "2005.01.01"]
[TimeControl "240"]

1. Nc3 {[%emt 0:00:03]} d5 {[%emt 0:00:03]} 2. e4 {[%emt 0:00:00]} d4 {
[%emt 0:00:01]} 3. Nce2 {[%emt 0:00:00]} e5 {[%emt 0:00:01]} 4. Ng3 {
[%emt 0:00:00]} Be6 {[%emt 0:00:02]} 5. c3 {[%emt 0:00:01]} c5 {[%emt 0:00:04]}
6. Nf3 {[%emt 0:00:01]} f6 {[%emt 0:00:02]} 7. Qa4+ {[%emt 0:00:02]} Nd7 {
[%emt 0:00:04]} 8. Bc4 {[%emt 0:00:01]} Bxc4 {[%emt 0:00:03]} 9. Qxc4 {
[%emt 0:00:00]} Nb6 {[%emt 0:00:04]} 10. Qb5+ {[%emt 0:00:04]} Qd7 {
[%emt 0:00:02]} 11. a4 {[%emt 0:00:01]} Ne7 {[%emt 0:00:07]} 12. Qxc5 {
[%emt 0:00:12]} dxc3 {[%emt 0:00:07]} 13. dxc3 {[%emt 0:00:08]} Nxa4 {
[%emt 0:00:02]} 14. Qa5 {[%emt 0:00:04]} Nb6 {[%emt 0:00:06]} 15. O-O {
[%emt 0:00:03]} Nc6 {[%emt 0:00:03]} 16. Qb5 {[%emt 0:00:02]} Nd8 {
[%emt 0:00:14]} 17. Qe2 {[%emt 0:00:02]} Ne6 {[%emt 0:00:04]} 18. Be3 {
[%emt 0:00:05]} Bc5 {[%emt 0:00:05]} 19. Rfd1 {[%emt 0:00:02]} Qc6 {
[%emt 0:00:01]} 20. Nf5 {[%emt 0:00:08]} O-O {[%emt 0:00:02]} 21. Bxc5 {
[%emt 0:00:02]} Qxc5 {[%emt 0:00:01]} 22. g3 {[%emt 0:00:23]} a6 {
[%emt 0:00:08]} 23. Nd6 {[%emt 0:00:10]} Qc6 {[%emt 0:00:06]} 24. Nh4 {
[%emt 0:00:05]} Rad8 {[%emt 0:00:05]} 25. Nhf5 {[%emt 0:00:01]} Rd7 {
[%emt 0:00:04]} 26. Qg4 {[%emt 0:00:05]} Kh8 {[%emt 0:00:22]} 27. Rd2 {
[%emt 0:00:10]} g6 {[%emt 0:00:08]} 28. Rad1 {[%emt 0:00:09]} gxf5 {
[%emt 0:00:05]} 29. Nxf5 {[%emt 0:00:01]} Rxd2 {[%emt 0:00:10]} 30. Rxd2 {
[%emt 0:00:01]} Nc8 {[%emt 0:00:09]} 31. h4 {[%emt 0:00:12]} Rg8 {
[%emt 0:00:08]} 32. Qf3 {[%emt 0:00:05]} Nc5 {[%emt 0:00:04]} 33. Rd5 {
[%emt 0:00:02]} Rf8 {[%emt 0:00:10]} 34. Qe3 {[%emt 0:00:05]} Ne6 {
[%emt 0:00:02]} 35. Qh6 {[%emt 0:00:18]} Qe8 {[%emt 0:00:02]} 36. Kh2 {
[%emt 0:00:11]} Qg6 {[%emt 0:00:03]} 37. Qe3 {[%emt 0:00:01]} Qf7 {
[%emt 0:00:03]} 38. b4 {[%emt 0:00:06]} Qc7 {[%emt 0:00:06]} 39. Qd3 {
[%emt 0:00:04]} Rd8 {[%emt 0:00:03]} 40. Nh6 {[%emt 0:00:03]} Kg7 {
[%emt 0:00:11]} 41. Nf5+ {[%emt 0:00:01]} Kg8 {[%emt 0:00:01]} 42. Qf3 {
[%emt 0:00:02]} Rxd5 {[%emt 0:00:03]} 43. exd5 {[%emt 0:00:01]} Nf8 {
[%emt 0:00:06]} 44. Nh6+ {[%emt 0:00:03]} Kg7 {[%emt 0:00:01]} 45. Nf5+ {
[%emt 0:00:01]} Kg8 {[%emt 0:00:01]} 46. Qg4+ {[%emt 0:00:01]} Kh8 {
[%emt 0:00:02]} 47. Nh6 {[%emt 0:00:04]} Qg7 {[%emt 0:00:01]} 48. Qxc8 {
[%emt 0:00:04]} Qxh6 {[%emt 0:00:01]} 49. d6 {[%emt 0:00:05]} Kg7 {
[%emt 0:00:02]} 50. d7 {[%emt 0:00:04]} Qd2 {[%emt 0:00:01]} 51. d8=Q {
[%emt 0:00:10]} Qxf2+ {[%emt 0:00:01]} 52. Kh3 {[%emt 0:00:00]} Qf1+ {
[%emt 0:00:01]} 53. Kg4 {[%emt 0:00:00]} Qe2+ {[%emt 0:00:01]} 54. Kh3 {
[%emt 0:00:06]} Qf1+ {[%emt 0:00:01]} 55. Kh2 {[%emt 0:00:00]} Qf2+ {
[%emt 0:00:01]} 56. Kh1 {[%emt 0:00:00]} Qf1+ {[%emt 0:00:01]} 57. Kh2 {
[%emt 0:00:00]} Qf2+ {(Lag: Av=0.51s, max=1.5s) [%emt 0:00:00]} 1/2-1/2